Cogmind - Beta 13 @@@ ROGUE MODE // 2024.05.11 @ 18:02:33 Player: Some Pennies Result: Destroyed by FA-9HN(R) with Subdweller Beam Cannon Performance ------------- Evolutions (0) 0 Regions Visited (2) 400 Robots Destroyed (32) 160 Value Destroyed (838) 838 Prototype IDs (15) 300 Alien Tech Used (0) 0 Bonus (0) 0 TOTAL SCORE: 1698 Bonus ------- None Cogmind --------- Core Integrity 0/250 Matter 251/300 Energy 98/100 System Corruption 0% Temperature Cool (55) Movement Core (450) Ox8 Location -10/Subcaves Parts ------- > --- POWER (1) -------- (None) > --- PROPULSION (2) --- (None) > --- UTILITY (2) ------ Large Storage Unit > --- WEAPON (2) ------- Advanced Beam Cannon Battle Cannon > --- INVENTORY (15) --- Improved Ion Engine Improved Ion Engine Spiked Treads Heat Sink Large Battery (200) Structural Scanner Hacking Suite Advanced Beam Cannon Powered Cannon Battle Rifle Battle Cannon Grenade Launcher Mining Laser Peak State ------------ > --- POWER ------------ Improved Ion Engine > --- PROPULSION ------- Light Treads Light Treads > --- UTILITY ---------- Large Storage Unit Makeshift Light Armor Plating > --- WEAPON ----------- Advanced Beam Cannon Advanced Beam Cannon > --- INVENTORY -------- Improved Ion Engine Improved Ion Engine Light Treads Heat Sink Large Battery Structural Scanner Improved Terrain Scanner Hacking Suite Particle Gun Advanced Beam Cannon Grenade Launcher Mining Laser [Rating: 17] Favorites ----------- Power Improved Ion Engine Engine Improved Ion Engine Propulsion Light Treads Treads Light Treads Utility Large Storage Unit Device Structural Scanner Storage Large Storage Unit Protection Makeshift Light Armor Plating Weapon Advanced Beam Cannon Energy Gun Particle Gun Energy Cannon Advanced Beam Cannon Ballistic Gun Assault Rifle Ballistic Cannon Battle Cannon Launcher Grenade Launcher Special Weapon Mining Laser Build | -11 -10 -10 ------- Run | Yrd Mat Sub Slots Evolved . | . . . Power . | . . . Propulsion . | . . . Utility . | . . . Weapon . | . . . Parts Attached 49 | 8 25 16 Power 7 | 1 5 1 Engine 7 | 1 5 1 Core . | . . . Reactor . | . . . Propulsion 14 | 2 9 3 Treads 14 | 2 9 3 Leg . | . . . Wheel . | . . . Hover . | . . . Flight . | . . . Utility 10 | 3 5 2 Device 4 | 1 3 . Storage 4 | 2 2 . Processor . | . . . Hackware . | . . . Protection 2 | . . 2 Artifact . | . . . Weapon 18 | 2 6 10 Energy Gun 2 | . 2 . Energy Cannon 4 | . 2 2 Ballistic Gun 5 | 2 2 1 Ballistic Cannon 3 | . . 3 Launcher 1 | . . 1 Special Weapon 3 | . . 3 Impact Weapon . | . . . Slashing Weapon . | . . . Piercing Weapon . | . . . Special Melee Weapon . | . . . Unidentified Prototypes 1 | . 1 . Parts Lost 11 | . 3 8 Power 2 | . . 2 Propulsion 5 | . 1 4 Utility 1 | . . 1 Weapon 3 | . 2 1 Highest Loss Streak 5 | . 2 5 To Critical Strikes . | . . . Average Slot Usage (%) 99 | . 98 99 Engine 13 | . 13 13 Treads 27 | . 27 28 Device 7 | . 14 . Storage 14 | . 14 14 Protection 6 | . . 13 Energy Gun 3 | . 6 . Energy Cannon 10 | . 6 16 Ballistic Gun 10 | . 15 3 Special Weapon 2 | . . 5 Naked Turns . | . . . Heaviest Build 39 | 15 33 39 Greatest Support 40 | 40 40 40 Greatest Overweight (x) 10 | . 10 . Average Overweight (x) . | . . . Largest Inventory Capacity 15 | 8 15 15 Average Capacity 12 | 6 11 15 Most Carried 15 | 5 15 15 Average Carried 11 | 2 10 14 Final Capacity 15 | 8 15 15 Final Carried 15 | 5 15 14 Class Distribution -------------------- 95% | Mutant 4% | Scavenger-Mutant Dominant Class ---------------- Mutant | -10/Materials Mutant | -10/Subcaves Resources | -11 -10 -10 ----------- Run | Yrd Mat Sub Matter Collected 1028 | 323 480 225 Remotely . | . . . Salvage Created 1043 | 131 613 299 Parts 70 | 9 44 17 Haulers Intercepted 2 | . 2 . Recyclers Shooed . | . . . Parts Field Recycled . | . . . Retrieved Matter . | . . . Parts Self-Destructed 22 | . . 22 Prevented . | . . . Kills | -11 -10 -10 ------- Run | Yrd Mat Sub Combat Hostiles Destroyed 21 | . 12 9 Guns 13 | . 12 1 Cannons 5 | . . 5 AOE 3 | . . 3 Classes Destroyed 10 | 2 6 2 Worker 1 | . 1 . Tunneler 3 | 2 1 . Hauler 2 | . 2 . Recycler 1 | 1 . . Operator 1 | . 1 . Watcher 3 | . 3 . Swarmer 3 | . 3 . Grunt 9 | . 9 . Cobbler 1 | . . 1 Subdweller 9 | . . 9 Best Kill Streak 4 | 3 4 3 Combat Bots Only 4 | . 4 3 Max Kills in Single Turn 2 | 1 2 1 Gunslinging 1 | . 1 . Exploded 1 | . . 1 Melee . | . . . Uniques/NPCs Destroyed . | . . . Combat | -11 -10 -10 -------- Run | Yrd Mat Sub Hostile Shots Fired 168 | . 82 86 Missed 49 | . 21 28 Damage Taken 2126 | . 764 1362 Core 269 | . 71 198 Absorbed by Shields . | . . . Regen/Repaired (Parts) 139 | . 139 . Core Remaining (%) 100 | 100 . . Volleys Fired 134 | 8 72 54 Largest 2 | 2 2 2 Hottest 136 | 40 115 136 Shots Fired 253 | 16 137 100 Gun 163 | 16 128 19 Cannon 77 | . 9 68 Launcher 5 | . . 5 Special 8 | . . 8 Kinetic 140 | 16 88 36 Thermal 108 | . 49 59 Explosive 5 | . . 5 Electromagnetic . | . . . Robot Hit Streak 20 | 6 15 20 Robot Miss Streak 3 | 1 3 2 Penetration Max . | . . . Secondary Targets 2 | . 2 . Max Gunslinging Chain 1 | . 1 . Shots Hit Robots 170 | 12 84 74 Core Hits 56 | 4 32 20 Critical Kills . | . . . Critical Parts Destroyed . | . . . Critical Strikes 2 | . . 2 Blast 2 | . . 2 Melee Attacks . | . . . Impact . | . . . Slashing . | . . . Piercing . | . . . Sneak Attacks . | . . . Combat Hostiles . | . . . Follow-up Attacks . | . . . Damage Inflicted 2912 | 144 1249 1519 Guns 1321 | 144 1059 118 Cannons 1285 | . 144 1141 Explosions 306 | . 46 260 Melee . | . . . Ramming . | . . . Kinetic 1196 | 144 640 412 Thermal 1410 | . 563 847 Explosive 306 | . 46 260 Electromagnetic . | . . . Impact . | . . . Slashing . | . . . Piercing . | . . . Highest Corruption . | . . . Average Corruption . | . . . Corruption Purged . | . . . Corruption Blocked . | . . . Overload Shots . | . . . Overflow Damage 4 | . 4 . Projectiles 4 | . 4 . Explosions . | . . . Melee . | . . . Knockbacks 1 | . . 1 Impact . | . . . Kinetic 1 | . . 1 Secondary . | . . . Self-Inflicted Damage 122 | . 64 58 Shots 6 | . 1 5 Rammed . | . . . Targets Rammed . | . . . Kicked . | . . . Crushed . | . . . Highest Temperature 217 | . 217 99 Average Temperature 39 | . 49 24 Received Heat Transfer 702 | . 381 321 Siege Activations . | . . . Robots Corrupted . | . . . Combat Hostiles . | . . . Parts Fried . | . . . Impact Corruptions . | . . . Robots Melted . | . . . Combat Hostiles . | . . . Parts Melted 2 | . . 2 Heat Transferred 2738 | . 1221 1517 Parts Sabotaged . | . . . Parts Stolen . | . . . Parts Stripped . | . . . Power Chain Reactions . | . . . Alert | -11 -10 -10 ------- Run | Yrd Mat Sub Peak Influence 216 | 15 216 . Initial 9 | . 9 . Average 45 | 4 48 . Maximum Alert Level 1 | . 1 . Low Security (%) 99 | 100 99 . Level 1 . | . . . Level 2 . | . . . Level 3 . | . . . Level 4 . | . . . Level 5 . | . . . High Security . | . . . Max Security . | . . . Squads Dispatched 3 | . 3 . Investigation 2 | . 2 . Extermination . | . . . Reinforcement 1 | . 1 . Assault . | . . . Garrison . | . . . Intercept . | . . . Searches Triggered . | . . . Construction Impeded . | . . . Haulers Reinforced . | . . . Active Scanning Responses . | . . . Cargo Convoy Interrupts . | . . . Stealth | -11 -10 -10 --------- Run | Yrd Mat Sub Distress Signals 1 | . 1 . Communications Jammed . | . . . Distress Signals . | . . . Times Spotted 42 | . 29 13 Peak Tracking Total 3 | . 3 3 Tactical Retreats 8 | . 8 . Traps | -11 -10 -10 ------- Run | Yrd Mat Sub Traps Triggered 4 | . 4 . Indirectly . | . . . Trap Hack Attempts . | . . . Triggered . | . . . Disarmed . | . . . Reprogrammed . | . . . Reused . | . . . Traps Extracted . | . . . Installed . | . . . Triggered . | . . . Machines | -11 -10 -10 ---------- Run | Yrd Mat Sub Machines Disabled 4 | . 3 1 Max in Single Turn 2 | . 2 1 Machines Repaired . | . . . Machines Dismantled . | . . . Machines Sabotaged . | . . . Overloaded Fab Kills . | . . . Hacking | -11 -10 -10 --------- Run | Yrd Mat Sub Machines Accessed 9 | . 8 1 Terminals 6 | . 6 . Fabricators . | . . . Repair Stations 1 | . 1 . Recycling Units 1 | . 1 . Scanalyzers . | . . . Garrison Access . | . . . Total Hacks 28 | . 27 1 Successful 13 | . 12 1 Failed 15 | . 15 . Catastrophic 1 | . 1 . Database Lockouts . | . . . Manual 13 | . 13 . Terminals 20 | . 20 . Fabricators . | . . . Repair Stations 5 | . 5 . Recycling Units 2 | . 2 . Scanalyzers . | . . . Garrison Access . | . . . Terminal Hacks 9 | . 8 1 Robot Analysis 1 | . 1 . Prototype ID Bank 2 | . 2 . Terminal Index 1 | . 1 . Unreport Threat 2 | . 2 . Locate Traps 2 | . 2 . Derelict Proto ID Bank 1 | . . 1 Fabricator Hacks . | . . . Repair Station Hacks 3 | . 3 . Scan Component 1 | . 1 . Repair 1 | . 1 . Refit 1 | . 1 . Recycling Unit Hacks . | . . . Scanalyzer . | . . . Garrison Access Hacks . | . . . Unauthorized Hacks 1 | . 1 . Terminals . | . . . Fabricators . | . . . Repair Stations . | . . . Recycling Units 1 | . 1 . Mask 1 | . 1 . Scanalyzers . | . . . Garrison Access . | . . . Data Cores Recovered . | . . . Used . | . . . Hacking Detections 7 | . 7 . Full Trace Events 1 | . 1 . Feedback Events . | . . . Feedback Blocked . | . . . Robot Schematics Acquired . | . . . Robots Built . | . . . Authchips . | . . . Time . | . . . Total Robot Build Rating . | . . . Part Schematics Acquired . | . . . Parts Built . | . . . Authchips . | . . . Time . | . . . Total Part Build Rating . | . . . Parts Repaired 1 | . 1 . Time 26 | . 26 . Parts Recycled . | . . . Recycled Matter . | . . . Retrieved Matter . | . . . Retrieved Components . | . . . Parts Scanalyzed . | . . . Part Schematics Acquired . | . . . Parts Damaged . | . . . Bothacking | -11 -10 -10 ------------ Run | Yrd Mat Sub Used RIF Installer . | . . . Robots Hacked . | . . . Non-combat . | . . . Combat . | . . . Robot Hacks Applied . | . . . Relay Couplers Released . | . . . Fabnet Peak Effective % . | . . . Robots Rewired . | . . . Allies Hacked . | . . . Hacks Repelled . | . . . Allies | -11 -10 -10 -------- Run | Yrd Mat Sub Total Allies . | . . . Largest Group . | . . . Highest-Rated Group . | . . . Highest-Rated Ally . | . . . Total Orders . | . . . Ally Attacks . | . . . Total Damage . | . . . Kills . | . . . Allies Corrupted . | . . . Allies Melted . | . . . Intel | -11 -10 -10 ------- Run | Yrd Mat Sub Robot Analysis Total 1 | . 1 . Derelict Logs Recovered . | . . . Drone Launches . | . . . Drone Recoveries . | . . . Exploration | -11 -10 -10 ------------- Run | Yrd Mat Sub Turns Passed 3585 | 137 1897 1551 Spaces Moved 1873 | 65 983 825 Core 10 | 9 1 . Treads 1863 | 56 982 825 Legs . | . . . Wheels . | . . . Hover . | . . . Flight . | . . . Fastest Speed 50 | 50 160 160 Average Speed 159 | 144 160 160 Slowest Speed 550 | 160 550 160 Overloaded Moves . | . . . Propulsion Burnouts . | . . . Robots Hopped . | . . . Cave-ins Triggered . | . . . Exploration Rate (%) 47 | 5 99 39 Regions Visited 2 Branch Regions 1 Pre-discovered Areas . | . . . Known Exits Taken . | . . . Unknown Exits Taken 2 | 1 1 . Scrap Searched 6 | . . 6 Spaces Dug . | . . . Terrain Destroyed 45 | . 23 22 Melee . | . . . Projectile 1 | . . 1 AOE 44 | . 23 21 Terrain Rammed . | . . . Walls Destroyed . | . . . Machines Disabled . | . . . Actions | -11 -10 -10 --------- Run | Yrd Mat Sub Total 2200 | 93 1166 941 Wait 84 | . 48 36 Move 1871 | 64 982 825 Hop . | . . . Pick Up 38 | 12 21 5 Fast Attach 10 | . 10 . Attach 13 | 8 1 4 Detach 1 | 1 . . Swap 26 | . 14 12 Drop 23 | . 18 5 Fire 134 | 8 72 54 Melee . | . . . Ram . | . . . Kick . | . . . Crush . | . . . Escape Stasis . | . . . Rewire . | . . . Trap . | . . . Miscellaneous . | . . . Route ------- -11/Scrapyard -10/Materials (discovered 6 exits: [*Mat x3] / [*Min x2] / *Sub) -10/Subcaves (discovered 1 exit: [*Mat]) History --------- Turn | Location | Event 33 | -11/Scrapyard | Discovered new exit (range 15) 138 | -11/Scrapyard | Entered Materials 310 | -10/Materials | Build established: Mutant 348 | -10/Materials | Discovered new exit (range 10) 412 | -10/Materials | Discovered new exit (range 11) 487 | -10/Materials | Discovered new exit (range 15) 897 | -10/Materials | Discovered new exit (range 9) 1071 | -10/Materials | Discovered new exit (range 11) 1559 | -10/Materials | Repaired Lgt. Treads 1623 | -10/Materials | Discovered new exit (range 6) 2035 | -10/Materials | Entered Subcaves 2483 | -10/Subcaves | Core integrity fell below 50% 2515 | -10/Subcaves | Lost 3 parts (1p1n1w) 2532 | -10/Subcaves | A swath of the cavern ceiling suddenly collapsed 2652 | -10/Subcaves | Discovered new exit (range 16) 2732 | -10/Subcaves | Shifting Twisted Machinery released Battle Cannon 2893 | -10/Subcaves | Ambushed by angry Subdweller bent on revenge 3067 | -10/Subcaves | Visited 4L-MR0's lab 3089 | -10/Subcaves | Found Powered Cannon 3224 | -10/Subcaves | Shifting Twisted Machinery released Sub. Laser 3479 | -10/Subcaves | Shifting Twisted Machinery released Sub. Shrapnel Launcher 3485 | -10/Subcaves | Shifting Twisted Machinery released Battle Cannon 3583 | -10/Subcaves | Core integrity fell below 20% 3586 | -10/Subcaves | Destroyed by FA-9HN(R) with Subdweller Beam Cannon Last Messages --------------- 03128_ Found Sub. Laser. 03128_ Found 20 Matter. 03129_ Acquired 20 matter. Sub. Laser falls loose from the Twisted Machinery. Sub. Shrapnel Launcher falls loose from the Twisted Machinery. Battle Cannon falls loose from the Twisted Machinery. 03488_ Dropped Battle Cannon. 03489_ Dropped Particle Gun. 03490_ Acquired Battle Cannon. 03529_ Subatomizers dissect the Particle Gun. 03567_ 5D-S7K(R) Sub. Optics blasted off. 03572_ Lgt. Treads destroyed. 03578_ Imp. Ion Engine destroyed. 03578_ Mak. Light Armor Plating destroyed. 03583_ Destroyed Scrap Shield. 03584_ Lgt. Treads destroyed. Map ----- +----------------------------------------------------+ | ???????????????????????????????????????????? | | ???????????????????????????????????????????? | | ???????????????????????????????????????????? | | ???????????????????????????????????????????? | | ???????????????????????????????????????????? | | ???????????????????????????????????????????? | | ???????????????????????????????????????????? | | ?????????#???????????###???????????????????? | | ????####"???????????## ##??????????????????? | | ####""""????????????# #??????????????????? | | ### #""##?##????????# #??????????????????? | | "#"#"##"##"??####??## ##?????????????????? | | ""#"""""#"#?## ##?# ##????????????????? | | ###"###"""### #?## #????????????????? | | ?"""#?##"#"" ### ###??????????????? | | #####??##"# # #??????????????? | | ##"##???## ## """ #??????????????? | | #"#"#????# ## ["""#""" #?????????????? | | ##""#????# ] #""""#"""#?????????????? | | ###????# ## #"""#?????????????? | | #???## ### #?????????????? | | "## #???# ## ##?????????????? | | #####???# #########??????????????? | | ????????# # #;####??????????????? | | ????????## #??????????????? | | ?????????## ## ## "@ ;#??????????????? | | ??????????##### ##""#### #RR#??????????????? | | ??????????????#######??###%##??????????????? | | ?????????????????????????# #???????????????? | | ????????????????????????? #???????????????? | | ????????????????????????? #???????????????? | | ????????????????????????? "#???????????????? | | ?????????????????????????""#???????????????? | | ????????????????????????"""#???????????????? | | ???????????????????????? "#???????????????? | | ???????????????????????? ?????????????????? | | ???????????????????????? "?????????????????? | | ???????????????????????????????????????????? | | ???????????????????????????????????????????? | | ???????????????????????????????????????????? | | ???????????????????????????????????????????? | | ???????????????????????????????????????????? | | ???????????????????????????????????????????? | | ???????????????????????????????????????????? | | ???????????????????????????????????????????? | | ???????????????????????????????????????????? | | ???????????????????????????????????????????? | | ???????????????????????????????????????????? | | ???????????????????????????????????????????? | | ???????????????????????????????????????????? | +----------------------------------------------------+ Best States ------------- Heat Dissipation 35 Energy Generation 12 Energy Capacity 265 Matter Stores 300 Matter Capacity 300 Sight Range 16 Terrain Scan Range 16 Terrain Scan Density 10 Armor Coverage 150 Evasion (%) 50 Recoil Reduction 2 Item Schematics ----------------- None Robot Schematics ------------------ None Fabricated ------------ Nothing Alien Tech Used ----------------- None Achievements -------------- None Challenges ------------ None Game ------ Seed PhysicsDeuteriumTerrabomb Manual? 0 Play Time 00:30:30 Cumulative 49.0 hours Start 2024.05.11 @ 17:32:36 End 2024.05.11 @ 18:02:33 Sessions 1 Manual Loads 0 Difficulty Rogue Special Mode None Game No. 58 Rogue 53 Adventurer 5 Explorer 0 Win Type - Total 0 Types 0/0/0/0/0/0/0/0/0 Lore% 28 Gallery% 31 Achievement% 25 Wizard Run 0 Options --------- Layout 2 ASCII 0 Keyboard 0 Movement Mouse Keybinds 0 Fullscreen 2 Font 24/Smallcaps Map View 50x44 Zoom Use 0% Tactical HUD 1 Map Filters NONE Filters NONE Steam 1 RUN: a47635ba-79ea-4739-a19f-93ece9e35a22